[Event "Titled Tuesday Blitz February 14 Early 2023"]
[White "Bilan, Danila"]
[Black "Torres Dominguez, David"]
[WhiteFideId "24161918"]
[BlackFideId "2220857"]
[WhiteElo "2303"]
[BlackElo "1994"]
[Result "1-0"]
[Round "05"]
[TimeControl "180+2"]
[Date "2023.02.15"]
[WhiteClock "0:00:06"]
[BlackClock "0:00:03"]

1. d4 {[%clk 0:03:00]}  e5 {[%clk 0:02:59]} 2. dxe5 {[%clk 0:02:54]}  d6 {[%clk 0:02:59]} 3. Nf3 {[%clk 0:02:50]}  Bg4 {[%clk 0:03:00]} 4. exd6 {[%clk 0:02:38]}  Bxd6 {[%clk 0:02:59]} 5. g3 {[%clk 0:02:33]}  Nc6 {[%clk 0:02:58]} 6. Bg2 {[%clk 0:02:28]}  Qd7 {[%clk 0:02:58]} 7. Bf4 {[%clk 0:02:21]}  Bh3 {[%clk 0:02:52]} 8. O-O {[%clk 0:02:01]}  Bxg2 {[%clk 0:02:48]} 9. Kxg2 {[%clk 0:01:58]}  O-O-O {[%clk 0:02:27]} 10. Bxd6 {[%clk 0:01:53]}  Qe8 {[%clk 0:02:17]} 11. Qd3 {[%clk 0:01:19]}  Rxd6 {[%clk 0:02:16]} 12. Qf5+ {[%clk 0:01:19]}  Kb8 {[%clk 0:02:13]} 13. Nc3 {[%clk 0:01:18]}  Nge7 {[%clk 0:02:13]} 14. Qb5 {[%clk 0:01:12]}  a6 {[%clk 0:02:08]} 15. Qc4 {[%clk 0:01:09]}  h5 {[%clk 0:02:04]} 16. Rad1 {[%clk 0:01:06]}  Rxd1 {[%clk 0:02:02]} 17. Rxd1 {[%clk 0:01:05]}  h4 {[%clk 0:02:02]} 18. Nxh4 {[%clk 0:01:00]}  g5 {[%clk 0:01:53]} 19. Nf3 {[%clk 0:00:52]}  f6 {[%clk 0:01:53]} 20. Qg4 {[%clk 0:00:47]}  Ng6 {[%clk 0:01:36]} 21. Qd7 {[%clk 0:00:41]}  Qf8 {[%clk 0:01:35]} 22. Nd5 {[%clk 0:00:35]}  g4 {[%clk 0:01:17]} 23. Qxg4 {[%clk 0:00:32]}  Nge5 {[%clk 0:01:13]} 24. Nxe5 {[%clk 0:00:29]}  Nxe5 {[%clk 0:01:13]} 25. Qf5 {[%clk 0:00:23]}  Qh6 {[%clk 0:01:02]} 26. h4 {[%clk 0:00:23]}  Ng6 {[%clk 0:01:02]} 27. Qxf6 {[%clk 0:00:22]}  Rf8 {[%clk 0:00:29]} 28. Qg5 {[%clk 0:00:19]}  Qh7 {[%clk 0:00:18]} 29. Ne3 {[%clk 0:00:16]}  Qf7 {[%clk 0:00:18]} 30. Rd8+ {[%clk 0:00:13]}  Rxd8 {[%clk 0:00:16]} 31. Qxd8+ {[%clk 0:00:13]}  Ka7 {[%clk 0:00:17]} 32. Qd4+ {[%clk 0:00:13]}  b6 {[%clk 0:00:17]} 33. h5 {[%clk 0:00:13]}  Nf8 {[%clk 0:00:13]} 34. Qd5 {[%clk 0:00:12]}  Ne6 {[%clk 0:00:10]} 35. h6 {[%clk 0:00:11]}  Qg6 {[%clk 0:00:06]} 36. Qe5 {[%clk 0:00:08]}  Qxh6 {[%clk 0:00:05]} 37. Nf5 {[%clk 0:00:07]}  Qg6 {[%clk 0:00:04]} 38. Ne7 {[%clk 0:00:07]}  Qf7 {[%clk 0:00:03]} 39. Nd5 {[%clk 0:00:06]} 1-0


[Site "https://www.chess.com"]

[Event "Titled Tuesday Blitz February 14 Early 2023"]
[White "Davalos Prieto, Abel Justo"]
[Black "Bozorov, Makhsum"]
[WhiteFideId "5102766"]
[BlackFideId "14201330"]
[WhiteElo "2029"]
[BlackElo "2145"]
[Result "1-0"]
[Round "05"]
[TimeControl "180+2"]
[Date "2023.02.15"]
[WhiteClock "0:00:09"]
[BlackClock "0:00:14"]

1. d4 {[%clk 0:03:00]}  Nf6 {[%clk 0:02:59]} 2. Bf4 {[%clk 0:02:59]}  g6 {[%clk 0:02:59]} 3. Nc3 {[%clk 0:02:54]}  d5 {[%clk 0:02:58]} 4. Nf3 {[%clk 0:02:53]}  Bg7 {[%clk 0:02:58]} 5. Ne5 {[%clk 0:02:50]}  O-O {[%clk 0:02:51]} 6. e3 {[%clk 0:02:50]}  c5 {[%clk 0:02:50]} 7. Be2 {[%clk 0:02:50]}  Nc6 {[%clk 0:02:49]} 8. h4 {[%clk 0:02:47]}  h5 {[%clk 0:02:47]} 9. O-O {[%clk 0:02:11]}  cxd4 {[%clk 0:02:42]} 10. exd4 {[%clk 0:02:10]}  Bf5 {[%clk 0:02:33]} 11. Nxc6 {[%clk 0:02:06]}  bxc6 {[%clk 0:02:32]} 12. Na4 {[%clk 0:02:05]}  Nd7 {[%clk 0:02:20]} 13. c3 {[%clk 0:02:02]}  Rc8 {[%clk 0:02:10]} 14. Ba6 {[%clk 0:01:57]}  e5 {[%clk 0:02:07]} 15. Bxc8 {[%clk 0:01:54]}  Qxc8 {[%clk 0:02:07]} 16. dxe5 {[%clk 0:01:51]}  Nxe5 {[%clk 0:02:08]} 17. Nc5 {[%clk 0:01:46]}  Nc4 {[%clk 0:02:04]} 18. Qb3 {[%clk 0:01:22]}  Qd8 {[%clk 0:01:54]} 19. Qb7 {[%clk 0:00:56]}  Qb6 {[%clk 0:01:36]} 20. Qxb6 {[%clk 0:00:40]}  axb6 {[%clk 0:01:37]} 21. Na4 {[%clk 0:00:40]}  b5 {[%clk 0:01:35]} 22. b3 {[%clk 0:00:39]}  Na5 {[%clk 0:01:21]} 23. Nc5 {[%clk 0:00:36]}  Bxc3 {[%clk 0:01:21]} 24. Rac1 {[%clk 0:00:32]}  Bb2 {[%clk 0:00:57]} 25. Rce1 {[%clk 0:00:29]}  Ba3 {[%clk 0:00:44]} 26. Be3 {[%clk 0:00:21]}  Bb4 {[%clk 0:00:33]} 27. Rc1 {[%clk 0:00:19]}  Re8 {[%clk 0:00:33]} 28. Rfd1 {[%clk 0:00:18]}  Ba3 {[%clk 0:00:15]} 29. Bd4 {[%clk 0:00:14]}  Bxc1 {[%clk 0:00:15]} 30. Rxc1 {[%clk 0:00:15]}  Re7 {[%clk 0:00:14]} 31. a4 {[%clk 0:00:14]}  bxa4 {[%clk 0:00:14]} 32. bxa4 {[%clk 0:00:15]}  Nc4 {[%clk 0:00:14]} 33. Ra1 {[%clk 0:00:13]}  Re8 {[%clk 0:00:13]} 34. a5 {[%clk 0:00:13]}  Bc8 {[%clk 0:00:13]} 35. a6 {[%clk 0:00:13]}  Bxa6 {[%clk 0:00:14]} 36. Rxa6 {[%clk 0:00:11]}  f5 {[%clk 0:00:14]} 37. Rxc6 {[%clk 0:00:11]}  Re1+ {[%clk 0:00:14]} 38. Kh2 {[%clk 0:00:11]}  Nd2 {[%clk 0:00:15]} 39. Rxg6+ {[%clk 0:00:10]}  Kf7 {[%clk 0:00:14]} 40. Rg7+ {[%clk 0:00:10]}  Ke8 {[%clk 0:00:14]} 41. Nb7 {[%clk 0:00:10]}  Nf1+ {[%clk 0:00:13]} 42. Kh3 {[%clk 0:00:09]}  Rd1 {[%clk 0:00:14]} 43. Nd6+ {[%clk 0:00:08]}  Kd8 {[%clk 0:00:14]} 44. Bf6# {[%clk 0:00:09]} 1-0


[Site "https://www.chess.com"]

[Event "Titled Tuesday Blitz February 14 Early 2023"]
[White "Barrera Rincones, Josmar Joel"]
[Black "Skvortsov, Andrei"]
[WhiteFideId "3975487"]
[BlackFideId "24108600"]
[WhiteElo "1399"]
[BlackElo "2313"]
[Result "0-1"]
[Round "05"]
[TimeControl "180+2"]
[Date "2023.02.15"]
[WhiteClock "0:00:24"]
[BlackClock "0:01:22"]

1. d4 {[%clk 0:03:00]}  e6 {[%clk 0:02:46]} 2. c4 {[%clk 0:02:59]}  Nf6 {[%clk 0:02:44]} 3. Nc3 {[%clk 0:02:58]}  c5 {[%clk 0:02:42]} 4. d5 {[%clk 0:02:57]}  exd5 {[%clk 0:02:43]} 5. cxd5 {[%clk 0:02:58]}  Bd6 {[%clk 0:02:44]} 6. g3 {[%clk 0:02:50]}  O-O {[%clk 0:02:44]} 7. Bg2 {[%clk 0:02:50]}  Re8 {[%clk 0:02:44]} 8. Nf3 {[%clk 0:02:50]}  a6 {[%clk 0:02:45]} 9. a4 {[%clk 0:02:49]}  Bc7 {[%clk 0:02:44]} 10. O-O {[%clk 0:02:49]}  d6 {[%clk 0:02:45]} 11. Bg5 {[%clk 0:02:49]}  Nbd7 {[%clk 0:02:45]} 12. Re1 {[%clk 0:02:48]}  Rb8 {[%clk 0:02:45]} 13. Qd3 {[%clk 0:02:46]}  h6 {[%clk 0:02:43]} 14. Bf4 {[%clk 0:02:37]}  Nf8 {[%clk 0:02:42]} 15. e4 {[%clk 0:02:36]}  Ng6 {[%clk 0:02:42]} 16. Bd2 {[%clk 0:02:29]}  Bd7 {[%clk 0:02:40]} 17. Rad1 {[%clk 0:02:23]}  b5 {[%clk 0:02:39]} 18. b3 {[%clk 0:02:22]}  bxa4 {[%clk 0:02:36]} 19. bxa4 {[%clk 0:02:23]}  Qc8 {[%clk 0:02:32]} 20. h4 {[%clk 0:01:47]}  Bg4 {[%clk 0:02:29]} 21. Rc1 {[%clk 0:01:42]}  Nd7 {[%clk 0:02:22]} 22. Nh2 {[%clk 0:01:30]}  Nde5 {[%clk 0:02:22]} 23. Qf1 {[%clk 0:01:30]}  Bd7 {[%clk 0:02:22]} 24. f4 {[%clk 0:01:29]}  Rb2 {[%clk 0:02:18]} 25. Be3 {[%clk 0:01:13]}  Rxg2+ {[%clk 0:02:10]} 26. Qxg2 {[%clk 0:01:10]}  Nd3 {[%clk 0:02:11]} 27. Qd2 {[%clk 0:01:01]}  Nxe1 {[%clk 0:02:09]} 28. Rxe1 {[%clk 0:01:02]}  Ba5 {[%clk 0:02:10]} 29. Qc2 {[%clk 0:00:55]}  f5 {[%clk 0:02:07]} 30. h5 {[%clk 0:00:51]}  Ne7 {[%clk 0:01:55]} 31. e5 {[%clk 0:00:50]}  Bxc3 {[%clk 0:01:51]} 32. Qxc3 {[%clk 0:00:41]}  Nxd5 {[%clk 0:01:52]} 33. Qd2 {[%clk 0:00:30]}  Nxe3 {[%clk 0:01:47]} 34. Rxe3 {[%clk 0:00:31]}  dxe5 {[%clk 0:01:47]} 35. fxe5 {[%clk 0:00:31]}  Be6 {[%clk 0:01:43]} 36. Nf3 {[%clk 0:00:29]}  Rd8 {[%clk 0:01:42]} 37. Qc3 {[%clk 0:00:26]}  Qc6 {[%clk 0:01:38]} 38. Kf2 {[%clk 0:00:22]}  Qxa4 {[%clk 0:01:31]} 39. Nh4 {[%clk 0:00:20]}  Qd4 {[%clk 0:01:25]} 40. Qxd4 {[%clk 0:00:10]}  cxd4 {[%clk 0:01:24]} 41. Ra3 {[%clk 0:00:11]}  Bc4 {[%clk 0:01:23]} 42. Nxf5 {[%clk 0:00:11]}  Rf8 {[%clk 0:01:22]} 43. g4 {[%clk 0:00:10]}  Be6 {[%clk 0:01:22]} 44. Rxa6 {[%clk 0:00:10]}  Bxf5 {[%clk 0:01:23]} 45. gxf5 {[%clk 0:00:11]}  Rxf5+ {[%clk 0:01:23]} 46. Kg3 {[%clk 0:00:12]}  Rxe5 {[%clk 0:01:23]} 47. Kg4 {[%clk 0:00:12]}  Rd5 {[%clk 0:01:22]} 48. Ra2 {[%clk 0:00:11]}  d3 {[%clk 0:01:22]} 49. Rd2 {[%clk 0:00:12]}  Kf7 {[%clk 0:01:23]} 50. Rf2+ {[%clk 0:00:11]}  Ke7 {[%clk 0:01:22]} 51. Rd2 {[%clk 0:00:12]}  Ke6 {[%clk 0:01:17]} 52. Kf4 {[%clk 0:00:12]}  Kf6 {[%clk 0:01:15]} 53. Kg4 {[%clk 0:00:12]}  Rd4+ {[%clk 0:01:15]} 54. Kf3 {[%clk 0:00:13]}  Kg5 {[%clk 0:01:14]} 55. Ke3 {[%clk 0:00:13]}  Rd8 {[%clk 0:01:14]} 56. Rg2+ {[%clk 0:00:14]}  Kxh5 {[%clk 0:01:14]} 57. Rh2+ {[%clk 0:00:15]}  Kg6 {[%clk 0:01:15]} 58. Rg2+ {[%clk 0:00:16]}  Kf7 {[%clk 0:01:15]} 59. Rh2 {[%clk 0:00:17]}  d2 {[%clk 0:01:15]} 60. Rxd2 {[%clk 0:00:17]}  Rxd2 {[%clk 0:01:15]} 61. Kxd2 {[%clk 0:00:18]}  Kf6 {[%clk 0:01:16]} 62. Ke1 {[%clk 0:00:19]}  Kf5 {[%clk 0:01:17]} 63. Kf2 {[%clk 0:00:20]}  Kg4 {[%clk 0:01:18]} 64. Kg1 {[%clk 0:00:20]}  g5 {[%clk 0:01:19]} 65. Kh1 {[%clk 0:00:20]}  Kf3 {[%clk 0:01:18]} 66. Kg1 {[%clk 0:00:21]}  g4 {[%clk 0:01:19]} 67. Kh1 {[%clk 0:00:22]}  Kf2 {[%clk 0:01:19]} 68. Kh2 {[%clk 0:00:22]}  g3+ {[%clk 0:01:20]} 69. Kh3 {[%clk 0:00:22]}  g2 {[%clk 0:01:21]} 70. Kh2 {[%clk 0:00:23]}  g1=Q+ {[%clk 0:01:22]} 71. Kh3 {[%clk 0:00:24]}  Qg3# {[%clk 0:01:22]} 0-1


[Site "https://www.chess.com"]

[Event "Titled Tuesday Blitz February 14 Early 2023"]
[White "Cunha, Lucas Aguiar"]
[Black "Enkhtuul, Altan-Ulzii"]
[WhiteFideId "2125404"]
[BlackFideId "4901444"]
[WhiteElo "2309"]
[BlackElo "2254"]
[Result "0-1"]
[Round "05"]
[TimeControl "180+2"]
[Date "2023.02.15"]
[WhiteClock "0:00:03"]
[BlackClock "0:00:19"]

1. e4 {[%clk 0:03:00]}  c6 {[%clk 0:02:53]} 2. d4 {[%clk 0:03:00]}  d5 {[%clk 0:02:53]} 3. e5 {[%clk 0:03:00]}  Bf5 {[%clk 0:02:52]} 4. Nf3 {[%clk 0:03:01]}  e6 {[%clk 0:02:52]} 5. Be2 {[%clk 0:03:01]}  a6 {[%clk 0:02:50]} 6. O-O {[%clk 0:03:02]}  c5 {[%clk 0:02:50]} 7. dxc5 {[%clk 0:02:51]}  Bxc5 {[%clk 0:02:49]} 8. a3 {[%clk 0:02:52]}  Ne7 {[%clk 0:02:45]} 9. b4 {[%clk 0:02:52]}  Bb6 {[%clk 0:02:44]} 10. Nbd2 {[%clk 0:02:53]}  Nbc6 {[%clk 0:02:43]} 11. Bb2 {[%clk 0:02:52]}  O-O {[%clk 0:02:43]} 12. c4 {[%clk 0:02:51]}  d4 {[%clk 0:02:37]} 13. c5 {[%clk 0:02:48]}  d3 {[%clk 0:02:31]} 14. cxb6 {[%clk 0:02:48]}  dxe2 {[%clk 0:02:31]} 15. Qxe2 {[%clk 0:02:49]}  Bd3 {[%clk 0:02:31]} 16. Qd1 {[%clk 0:02:40]}  Bxf1 {[%clk 0:02:31]} 17. Qxf1 {[%clk 0:02:41]}  Qxb6 {[%clk 0:02:29]} 18. Nc4 {[%clk 0:02:40]}  Qb5 {[%clk 0:02:23]} 19. Qc1 {[%clk 0:02:40]}  Nf5 {[%clk 0:02:19]} 20. g4 {[%clk 0:02:36]}  Qd5 {[%clk 0:02:19]} 21. Qc3 {[%clk 0:02:30]}  Nh6 {[%clk 0:01:54]} 22. Nb6 {[%clk 0:02:26]}  Qe4 {[%clk 0:01:50]} 23. Nxa8 {[%clk 0:02:21]}  Qxg4+ {[%clk 0:01:49]} 24. Kh1 {[%clk 0:02:20]}  Rxa8 {[%clk 0:01:46]} 25. Rg1 {[%clk 0:02:17]}  Qe4 {[%clk 0:01:46]} 26. Re1 {[%clk 0:02:02]}  Qd5 {[%clk 0:01:42]} 27. Kg1 {[%clk 0:01:59]}  Rd8 {[%clk 0:01:39]} 28. Qe3 {[%clk 0:01:53]}  Nf5 {[%clk 0:01:39]} 29. Qf4 {[%clk 0:01:49]}  h6 {[%clk 0:01:32]} 30. Re2 {[%clk 0:01:43]}  Qd1+ {[%clk 0:01:26]} 31. Re1 {[%clk 0:01:41]}  Qb3 {[%clk 0:01:25]} 32. Re2 {[%clk 0:01:38]}  Rd1+ {[%clk 0:01:19]} 33. Kg2 {[%clk 0:01:37]}  Qd3 {[%clk 0:01:19]} 34. Qe4 {[%clk 0:01:23]}  Qb1 {[%clk 0:01:04]} 35. Qc4 {[%clk 0:01:16]}  Rh1 {[%clk 0:00:54]} 36. Rd2 {[%clk 0:01:08]}  Rd1 {[%clk 0:00:39]} 37. Rc2 {[%clk 0:00:57]}  Nfd4 {[%clk 0:00:35]} 38. Nxd4 {[%clk 0:00:53]}  Rg1+ {[%clk 0:00:33]} 39. Kh3 {[%clk 0:00:51]}  Nxd4 {[%clk 0:00:31]} 40. Bxd4 {[%clk 0:00:48]}  Qd1 {[%clk 0:00:30]} 41. Qe2 {[%clk 0:00:06]}  Qxd4 {[%clk 0:00:27]} 42. f3 {[%clk 0:00:04]}  Qf4 {[%clk 0:00:19]} 43. Rc8+ {[%clk 0:00:02]}  Kh7 {[%clk 0:00:19]} 44. Rc4 {[%clk 0:00:03]}  Qg5 {[%clk 0:00:19]} 0-1


[Site "https://www.chess.com"]

[Event "Titled Tuesday Blitz February 14 Early 2023"]
[White "Gatterer, Florian"]
[Black "Souleidis, Georgios"]
[WhiteFideId "811688"]
[BlackFideId "4206827"]
[WhiteElo "2170"]
[BlackElo "2419"]
[Result "0-1"]
[Round "05"]
[TimeControl "180+2"]
[Date "2023.02.15"]
[WhiteClock "0:00:17"]
[BlackClock "0:00:13"]

1. e4 {[%clk 0:02:49]}  c5 {[%clk 0:02:57]} 2. Nf3 {[%clk 0:02:47]}  e6 {[%clk 0:02:58]} 3. c3 {[%clk 0:02:45]}  d5 {[%clk 0:02:52]} 4. exd5 {[%clk 0:02:45]}  exd5 {[%clk 0:02:53]} 5. d4 {[%clk 0:02:43]}  Nf6 {[%clk 0:02:53]} 6. Be2 {[%clk 0:02:37]}  Be7 {[%clk 0:02:51]} 7. O-O {[%clk 0:02:37]}  O-O {[%clk 0:02:51]} 8. dxc5 {[%clk 0:02:37]}  Bxc5 {[%clk 0:02:51]} 9. Nbd2 {[%clk 0:02:37]}  Nc6 {[%clk 0:02:51]} 10. Nb3 {[%clk 0:02:36]}  Bb6 {[%clk 0:02:50]} 11. Nbd4 {[%clk 0:02:35]}  Bg4 {[%clk 0:02:46]} 12. Bg5 {[%clk 0:02:30]}  h6 {[%clk 0:02:43]} 13. Bh4 {[%clk 0:02:28]}  Re8 {[%clk 0:02:33]} 14. h3 {[%clk 0:02:11]}  Bh5 {[%clk 0:02:29]} 15. Nxc6 {[%clk 0:01:56]}  bxc6 {[%clk 0:02:28]} 16. Nd4 {[%clk 0:01:51]}  Bxe2 {[%clk 0:02:16]} 17. Nxe2 {[%clk 0:01:51]}  c5 {[%clk 0:01:58]} 18. a4 {[%clk 0:01:21]}  Bc7 {[%clk 0:01:37]} 19. Bg3 {[%clk 0:01:19]}  Rb8 {[%clk 0:01:32]} 20. Qc2 {[%clk 0:01:12]}  Bxg3 {[%clk 0:01:26]} 21. Nxg3 {[%clk 0:01:12]}  Qb6 {[%clk 0:01:26]} 22. Rab1 {[%clk 0:01:05]}  d4 {[%clk 0:01:22]} 23. Rfd1 {[%clk 0:00:55]}  Red8 {[%clk 0:01:18]} 24. cxd4 {[%clk 0:00:54]}  cxd4 {[%clk 0:01:18]} 25. Nf5 {[%clk 0:00:54]}  Rd7 {[%clk 0:00:58]} 26. b4 {[%clk 0:00:53]}  Rbd8 {[%clk 0:00:58]} 27. Rd3 {[%clk 0:00:52]}  Qe6 {[%clk 0:00:57]} 28. Ng3 {[%clk 0:00:39]}  Qe5 {[%clk 0:00:56]} 29. Qd2 {[%clk 0:00:35]}  h5 {[%clk 0:00:39]} 30. Re1 {[%clk 0:00:34]}  Qd5 {[%clk 0:00:40]} 31. Rd1 {[%clk 0:00:30]}  Qc4 {[%clk 0:00:31]} 32. Re1 {[%clk 0:00:17]}  Qd5 {[%clk 0:00:27]} 33. Rd1 {[%clk 0:00:16]}  h4 {[%clk 0:00:26]} 34. Ne2 {[%clk 0:00:13]}  Qc4 {[%clk 0:00:24]} 35. Qg5 {[%clk 0:00:11]}  Qxb4 {[%clk 0:00:18]} 36. Qxh4 {[%clk 0:00:11]}  Qxa4 {[%clk 0:00:18]} 37. Nf4 {[%clk 0:00:11]}  Qb5 {[%clk 0:00:16]} 38. Qg3 {[%clk 0:00:10]}  Qf5 {[%clk 0:00:14]} 39. Qf3 {[%clk 0:00:07]}  Qe4 {[%clk 0:00:13]} 40. Qg3 {[%clk 0:00:07]}  Qe5 {[%clk 0:00:11]} 41. Qf3 {[%clk 0:00:07]}  a5 {[%clk 0:00:10]} 42. g4 {[%clk 0:00:07]}  a4 {[%clk 0:00:09]} 43. Ng2 {[%clk 0:00:07]}  Qe4 {[%clk 0:00:09]} 44. Qxe4 {[%clk 0:00:06]}  Nxe4 {[%clk 0:00:09]} 45. Nf4 {[%clk 0:00:06]}  Nc3 {[%clk 0:00:05]} 46. R1d2 {[%clk 0:00:05]}  a3 {[%clk 0:00:05]} 47. Ne2 {[%clk 0:00:04]}  Nxe2+ {[%clk 0:00:05]} 48. Rxe2 {[%clk 0:00:04]}  Rc8 {[%clk 0:00:02]} 49. Ra2 {[%clk 0:00:04]}  Rc3 {[%clk 0:00:02]} 50. Rxc3 {[%clk 0:00:04]}  dxc3 {[%clk 0:00:02]} 51. Rxa3 {[%clk 0:00:04]}  Rd1+ {[%clk 0:00:02]} 52. Kg2 {[%clk 0:00:04]}  c2 {[%clk 0:00:03]} 53. Ra8+ {[%clk 0:00:02]}  Kh7 {[%clk 0:00:03]} 54. Rc8 {[%clk 0:00:03]}  c1=Q {[%clk 0:00:04]} 55. Rxc1 {[%clk 0:00:04]}  Rxc1 {[%clk 0:00:05]} 56. Kf3 {[%clk 0:00:04]}  Rc3+ {[%clk 0:00:06]} 57. Kg2 {[%clk 0:00:05]}  Ra3 {[%clk 0:00:07]} 58. f3 {[%clk 0:00:06]}  Ra4 {[%clk 0:00:07]} 59. Kg3 {[%clk 0:00:07]}  Ra5 {[%clk 0:00:08]} 60. h4 {[%clk 0:00:07]}  f6 {[%clk 0:00:09]} 61. h5 {[%clk 0:00:08]}  Kh6 {[%clk 0:00:09]} 62. f4 {[%clk 0:00:09]}  Ra3+ {[%clk 0:00:09]} 63. Kh4 {[%clk 0:00:10]}  Ra4 {[%clk 0:00:09]} 64. g5+ {[%clk 0:00:11]}  fxg5+ {[%clk 0:00:10]} 65. Kg4 {[%clk 0:00:11]}  Rxf4+ {[%clk 0:00:10]} 66. Kg3 {[%clk 0:00:12]}  Kxh5 {[%clk 0:00:11]} 67. Kg2 {[%clk 0:00:13]}  g6 {[%clk 0:00:12]} 68. Kg3 {[%clk 0:00:13]}  Rg4+ {[%clk 0:00:12]} 69. Kf3 {[%clk 0:00:13]}  Kh4 {[%clk 0:00:12]} 70. Kf2 {[%clk 0:00:14]}  Rg3 {[%clk 0:00:12]} 71. Kf1 {[%clk 0:00:14]}  Kg4 {[%clk 0:00:13]} 72. Kf2 {[%clk 0:00:15]}  Kf4 {[%clk 0:00:14]} 73. Kf1 {[%clk 0:00:16]}  Ke3 {[%clk 0:00:13]} 74. Ke1 {[%clk 0:00:17]}  Rg1# {[%clk 0:00:13]} 0-1


[Site "https://www.chess.com"]

[Event "Titled Tuesday Blitz February 14 Early 2023"]
[White "Prado Lobo, Jonas"]
[Black "Llanos, Guillermo"]
[WhiteFideId "32050666"]
[BlackFideId "100358"]
[WhiteElo "2313"]
[BlackElo "2290"]
[Result "1-0"]
[Round "05"]
[TimeControl "180+2"]
[Date "2023.02.15"]
[WhiteClock "0:00:06"]
[BlackClock "0:00:02"]

1. d4 {[%clk 0:03:00]}  Nf6 {[%clk 0:02:55]} 2. c4 {[%clk 0:03:01]}  b6 {[%clk 0:02:54]} 3. Nc3 {[%clk 0:02:59]}  Bb7 {[%clk 0:02:53]} 4. Qc2 {[%clk 0:02:58]}  d5 {[%clk 0:02:53]} 5. cxd5 {[%clk 0:02:54]}  Nxd5 {[%clk 0:02:52]} 6. e4 {[%clk 0:02:51]}  Nxc3 {[%clk 0:02:52]} 7. bxc3 {[%clk 0:02:51]}  e6 {[%clk 0:02:51]} 8. Nf3 {[%clk 0:02:47]}  Be7 {[%clk 0:02:49]} 9. Bd3 {[%clk 0:02:40]}  c5 {[%clk 0:02:48]} 10. O-O {[%clk 0:02:39]}  cxd4 {[%clk 0:02:47]} 11. cxd4 {[%clk 0:02:38]}  O-O {[%clk 0:02:47]} 12. Bb2 {[%clk 0:02:37]}  Nc6 {[%clk 0:02:44]} 13. Qe2 {[%clk 0:02:33]}  Nb4 {[%clk 0:02:41]} 14. Bc4 {[%clk 0:02:26]}  Rc8 {[%clk 0:02:35]} 15. Rfd1 {[%clk 0:02:23]}  Bxe4 {[%clk 0:02:25]} 16. Bb5 {[%clk 0:01:22]}  Bd5 {[%clk 0:02:17]} 17. Ne5 {[%clk 0:01:21]}  Rc2 {[%clk 0:02:16]} 18. Rd2 {[%clk 0:01:16]}  Rxd2 {[%clk 0:02:12]} 19. Qxd2 {[%clk 0:01:17]}  a6 {[%clk 0:01:47]} 20. Be2 {[%clk 0:01:14]}  b5 {[%clk 0:01:43]} 21. Rc1 {[%clk 0:01:11]}  Nxa2 {[%clk 0:01:39]} 22. Nc6 {[%clk 0:01:08]}  Qd6 {[%clk 0:01:24]} 23. Nxe7+ {[%clk 0:01:04]}  Qxe7 {[%clk 0:01:23]} 24. Rc5 {[%clk 0:01:03]}  Qd7 {[%clk 0:01:07]} 25. Qa5 {[%clk 0:00:57]}  Bb7 {[%clk 0:00:35]} 26. Qxa2 {[%clk 0:00:54]}  Rc8 {[%clk 0:00:30]} 27. Qa3 {[%clk 0:00:48]}  h6 {[%clk 0:00:24]} 28. Rxc8+ {[%clk 0:00:37]}  Qxc8 {[%clk 0:00:23]} 29. Qc5 {[%clk 0:00:38]}  Qd7 {[%clk 0:00:22]} 30. h3 {[%clk 0:00:28]}  Qd5 {[%clk 0:00:18]} 31. Bf3 {[%clk 0:00:23]}  Qxc5 {[%clk 0:00:17]} 32. dxc5 {[%clk 0:00:24]}  Bc8 {[%clk 0:00:16]} 33. c6 {[%clk 0:00:20]}  a5 {[%clk 0:00:16]} 34. c7 {[%clk 0:00:15]}  b4 {[%clk 0:00:15]} 35. Bc6 {[%clk 0:00:10]}  f6 {[%clk 0:00:14]} 36. Bd4 {[%clk 0:00:07]}  e5 {[%clk 0:00:09]} 37. Bb6 {[%clk 0:00:05]}  b3 {[%clk 0:00:08]} 38. Bd5+ {[%clk 0:00:05]}  Kf8 {[%clk 0:00:07]} 39. Bxb3 {[%clk 0:00:06]}  Ke7 {[%clk 0:00:07]} 40. Bxa5 {[%clk 0:00:06]}  Kd6 {[%clk 0:00:07]} 41. Kf1 {[%clk 0:00:05]}  g5 {[%clk 0:00:06]} 42. Ke1 {[%clk 0:00:06]}  h5 {[%clk 0:00:06]} 43. Kd2 {[%clk 0:00:06]}  h4 {[%clk 0:00:06]} 44. Ke3 {[%clk 0:00:06]}  f5 {[%clk 0:00:05]} 45. Bc2 {[%clk 0:00:05]}  f4+ {[%clk 0:00:02]} 46. Kf3 {[%clk 0:00:06]} 1-0


[Site "https://www.chess.com"]

[Event "Titled Tuesday Blitz February 14 Early 2023"]
[White "Zia, Tahsin Tajwar"]
[Black "Bas Mas, Jose Joaquin"]
[WhiteFideId "10211888"]
[BlackFideId "22219064"]
[WhiteElo "2315"]
[BlackElo "2197"]
[Result "1-0"]
[Round "05"]
[TimeControl "180+2"]
[Date "2023.02.15"]
[WhiteClock "0:01:10"]
[BlackClock "0:00:13"]

1. d4 {[%clk 0:03:00]}  f5 {[%clk 0:02:59]} 2. Nc3 {[%clk 0:02:59]}  Nf6 {[%clk 0:02:58]} 3. Bf4 {[%clk 0:02:56]}  e6 {[%clk 0:02:55]} 4. g4 {[%clk 0:02:51]}  Nxg4 {[%clk 0:02:44]} 5. e4 {[%clk 0:02:51]}  Bb4 {[%clk 0:02:42]} 6. Qd3 {[%clk 0:02:34]}  fxe4 {[%clk 0:02:33]} 7. Qxe4 {[%clk 0:02:28]}  Nf6 {[%clk 0:02:33]} 8. Qg2 {[%clk 0:02:20]}  O-O {[%clk 0:02:29]} 9. O-O-O {[%clk 0:02:08]}  Bxc3 {[%clk 0:02:27]} 10. bxc3 {[%clk 0:02:08]}  Qe7 {[%clk 0:02:27]} 11. Bd3 {[%clk 0:02:03]}  Nd5 {[%clk 0:02:24]} 12. Bh6 {[%clk 0:01:46]}  Qa3+ {[%clk 0:02:02]} 13. Kd2 {[%clk 0:01:45]}  Qxc3+ {[%clk 0:02:01]} 14. Ke2 {[%clk 0:01:38]}  Rf7 {[%clk 0:01:37]} 15. Nf3 {[%clk 0:01:32]}  Nc6 {[%clk 0:01:10]} 16. Rhg1 {[%clk 0:01:27]}  Qb4 {[%clk 0:00:36]} 17. Qxg7+ {[%clk 0:01:12]}  Rxg7 {[%clk 0:00:35]} 18. Rxg7+ {[%clk 0:01:13]}  Kf8 {[%clk 0:00:30]} 19. Rxh7+ {[%clk 0:01:12]}  Kg8 {[%clk 0:00:13]} 20. Rg1# {[%clk 0:01:10]} 1-0


[Site "https://www.chess.com"]